bitfinex-derivatives/quotes_BTCF0:USTF0_20250709
["timestamp","ask_amount","ask_price","bid_price","bid_amount"]
[1752039435907,0.30128387,108880.0,108870.0,0.31853514]
[1752039436198,0.30228387,108880.0,108870.0,0.40073343]
[1752039436404,0.27796387,108880.0,108870.0,0.40073343]
[1752039436601,0.27796387,108880.0,108870.0,0.41575343]
[1752039436799,0.27796387,108880.0,108870.0,0.62919343]
[1752039437607,0.22046387,108880.0,108870.0,0.62919343]
[1752039438004,0.22046387,108880.0,108870.0,0.87983178]
[1752039438409,0.22046387,108880.0,108870.0,0.79763349]
[1752039438610,0.22046387,108880.0,108870.0,0.82208349]
[1752039439614,0.02071227,108880.0,108870.0,0.82208349]
[1752039439804,0.20437347,108880.0,108870.0,0.82208349]
[1752039440110,0.22046347,108880.0,108870.0,0.82208349]
[1752039440611,0.22046347,108880.0,108870.0,0.93167854]
[1752039440798,0.20437347,108880.0,108870.0,0.68104019]
[1752039440998,0.20437347,108880.0,108870.0,0.93167854]
[1752039441203,0.02071227,108880.0,108870.0,0.93167854]
[1752039441415,0.20437347,108880.0,108870.0,0.93167854]
[1752039441906,0.20437347,108880.0,108870.0,0.93167754]
[1752039442113,0.02071227,108880.0,108870.0,0.93167754]
[1752039442714,0.20437347,108880.0,108870.0,0.93167754]
[1752039443201,0.02071227,108880.0,108870.0,1.27167754]
[1752039443511,0.02071227,108880.0,108870.0,0.82208249]
[1752039444105,0.02071227,108880.0,108870.0,1.18208249]
[1752039444410,0.02071227,108880.0,108870.0,1.13208249]
[1752039444607,0.02071227,108880.0,108870.0,1.12772445]
[1752039444909,0.00313822,108880.0,108870.0,1.48729565]
[1752039445110,0.00313822,108880.0,108870.0,1.39664558]
[1752039445513,0.00313822,108880.0,108870.0,1.50624063]
[1752039446216,0.00213822,108880.0,108870.0,1.4798669]
[1752039446616,0.005,108900.0,108870.0,1.32356213]
[1752039446813,0.005,108900.0,108890.0,0.43428285]
[1752039447009,0.45535605,108900.0,108890.0,0.54955942]
[1752039447210,0.2047177,108900.0,108890.0,0.6359712]
[1752039447409,0.1886277,108900.0,108890.0,0.6358912]
[1752039447610,0.2047177,108900.0,108890.0,0.63588996]
[1752039447806,0.45535605,108900.0,108890.0,0.36931818]
[1752039448011,0.45535605,108900.0,108890.0,0.39669192]
[1752039448210,0.45535605,108900.0,108890.0,0.31509237]
[1752039448414,0.48775605,108900.0,108890.0,0.39721799]
[1752039448606,0.2874477,108900.0,108890.0,0.58086249]
[1752039449009,0.53808605,108900.0,108890.0,0.41223799]
[1752039449621,0.2884477,108900.0,108890.0,0.59588249]
[1752039449813,0.2303477,108900.0,108890.0,0.59588249]
[1752039450020,0.2057177,108900.0,108890.0,0.63182704]
[1752039450211,0.32151577,108920.0,108910.0,0.1836108]
[1752039450513,0.01953081,108920.0,108910.0,0.60205994]
[1752039450815,0.01953081,108920.0,108910.0,0.92598101]
[1752039451012,0.30357318,108940.0,108930.0,0.1835771]
[1752039451210,0.30357318,108940.0,108930.0,0.28413301]
[1752039451211,0.2294528,108940.0,108930.0,0.28413301]
[1752039451409,0.43420095,108940.0,108930.0,0.31633301]
[1752039451916,0.43420095,108940.0,108930.0,0.35736123]
[1752039452112,0.3600948,108950.0,108930.0,0.17378413]
[1752039452317,0.24711725,108950.0,108940.0,0.2157602]
[1752039452514,0.5138456,108950.0,108940.0,0.27684611]
[1752039452721,0.01609,108950.0,108940.0,0.48784611]
[1752039452916,0.1996331,108950.0,108940.0,0.52887433]
[1752039453614,0.2046331,108950.0,108940.0,0.52114611]
[1752039453920,0.2046331,108950.0,108940.0,0.6168982]
[1752039454718,0.2046331,108950.0,108940.0,0.6563682]
[1752039454913,0.51749013,108950.0,108940.0,0.6559679]
[1752039455117,0.52149013,108950.0,108940.0,0.6559679]
[1752039455320,0.2036331,108950.0,108940.0,0.60024403]
[1752039455616,0.1905431,108950.0,108940.0,0.60024403]
[1752039455818,0.1905431,108950.0,108940.0,0.55921581]
[1752039456418,0.1905431,108950.0,108940.0,0.55879797]
[1752039456607,0.1905431,108950.0,108940.0,0.59962476]
[1752039456918,0.007,108950.0,108940.0,0.65434863]
[1752039457912,0.1905433,108950.0,108940.0,0.65434863]
[1752039458112,0.1905433,108950.0,108940.0,0.92637887]
[1752039458321,0.007,108950.0,108940.0,0.65428441]
[1752039458615,0.007,108950.0,108940.0,0.61352184]
[1752039459012,0.007,108950.0,108940.0,0.92637887]
[1752039459209,0.007,108950.0,108940.0,0.967139]
[1752039459624,0.1905432,108950.0,108940.0,0.967139]
[1752039460125,0.007,108950.0,108940.0,0.92637887]
[1752039460317,0.007,108950.0,108940.0,0.61352184]
[1752039460715,0.007,108950.0,108940.0,0.92637085]
[1752039461812,0.1905432,108950.0,108940.0,0.92637085]
[1752039462018,0.1905432,108950.0,108940.0,0.61351379]
[1752039462523,0.1905432,108950.0,108940.0,0.92630318]
[1752039462722,0.51949023,108950.0,108940.0,0.65311007]
[1752039463120,0.2066332,108950.0,108940.0,0.65311007]
[1752039464722,0.1905432,108950.0,108940.0,0.65311007]
[1752039465411,0.007,108950.0,108940.0,0.5983862]
[1752039465614,0.1905432,108950.0,108940.0,0.5983862]
[1752039465816,0.1905432,108950.0,108940.0,0.65311007]
[1752039466018,0.007,108950.0,108940.0,0.65311007]
[1752039466229,0.1905432,108950.0,108940.0,0.65311007]
[1752039466419,0.007,108950.0,108940.0,0.65311007]
[1752039466622,0.1905432,108950.0,108940.0,0.65311007]
[1752039468221,0.2059932,108950.0,108940.0,0.22051997]
[1752039468427,0.54935023,108950.0,108940.0,0.42935997]
[1752039468628,0.54935023,108950.0,108940.0,0.44590997]
[1752039468827,0.57945023,108950.0,108940.0,0.42935997]
[1752039469026,0.57945023,108950.0,108940.0,0.20486997]
[1752039469219,0.57945023,108950.0,108940.0,0.17256997]
[1752039469418,0.2665932,108950.0,108940.0,0.17256997]
[1752039469623,0.57945023,108950.0,108940.0,0.1178461]
[1752039469824,0.57945023,108950.0,108940.0,0.07714238]
[1752039470424,0.57945023,108950.0,108940.0,0.0771444]
[1752039471534,0.2665932,108950.0,108940.0,0.0771444]
[1752039471724,0.56400023,108950.0,108940.0,0.0605944]
[1752039471923,0.60326023,108950.0,108940.0,0.0605944]
[1752039472226,0.78683624,108950.0,108940.0,0.0605944]
[1752039472734,1.03683624,108950.0,108940.0,0.0605944]
[1752039473529,1.03683624,108950.0,108940.0,0.01435091]
[1752039473731,0.1835601,108940.0,108930.0,0.00013822]
[1752039473925,0.7997686,108940.0,108930.0,0.04288828]
[1752039474132,1.0071706,108940.0,108930.0,0.04288828]
[1752039474931,1.0091706,108940.0,108930.0,0.04288828]
[1752039475430,1.0111706,108940.0,108930.0,0.04288828]
[1752039475632,1.2611706,108940.0,108930.0,0.04288828]
[1752039476128,1.2611706,108940.0,108930.0,0.03155043]
[1752039478325,1.0534106,108940.0,108930.0,0.03155043]
[1752039478525,1.2608106,108940.0,108930.0,0.03155043]
[1752039478833,1.2608106,108940.0,108930.0,0.00328633]
[1752039479628,0.94795357,108940.0,108930.0,0.00328633]
[1752039479834,1.2608106,108940.0,108930.0,0.00328633]
[1752039480832,0.94795357,108940.0,108930.0,0.00328633]
[1752039481032,1.2608106,108940.0,108930.0,0.00328633]
[1752039482324,1.2608106,108940.0,108930.0,3e-08]
[1752039482530,0.1835769,108930.0,108920.0,0.00013822]
[1752039482730,0.59959393,108930.0,108920.0,0.00013822]
[1752039482931,0.9715309,108930.0,108920.0,0.00013822]
[1752039483334,0.97488398,108930.0,108920.0,0.00013822]
[1752039483738,0.6778329,108930.0,108920.0,0.00013822]
[1752039483925,1.1800109,108930.0,108920.0,0.00013822]
[1752039485634,1.1800109,108930.0,108920.0,0.01422904]
[1752039486935,0.68215846,108930.0,108920.0,0.01422904]
[1752039487239,1.18333646,108930.0,108920.0,0.01422904]
[1752039488425,0.68215846,108930.0,108920.0,0.01422904]
[1752039488625,1.18333646,108930.0,108920.0,0.01422904]
[1752039490940,1.18333646,108930.0,108920.0,0.00013822]
[1752039491143,1.18333646,108930.0,108920.0,2e-08]
[1752039491442,0.1836274,108900.0,108890.0,0.09561496]
[1752039491631,0.9061754,108900.0,108890.0,0.10130819]
[1752039491832,0.8907254,108900.0,108890.0,0.10130819]
[1752039492230,0.9061754,108900.0,108890.0,0.10130819]
[1752039492635,0.6555864,108900.0,108890.0,0.10630819]
[1752039492844,0.6555864,108900.0,108890.0,0.13680819]
[1752039493645,0.6555864,108900.0,108890.0,0.16000819]
[1752039493845,0.6555864,108900.0,108890.0,0.16400819]
[1752039494352,0.6555864,108900.0,108890.0,0.20623621]
[1752039494649,0.73018951,108900.0,108890.0,0.20623621]
[1752039495549,0.98077851,108900.0,108890.0,0.18303621]
[1752039495749,0.73018951,108900.0,108890.0,0.17903621]
[1752039495945,0.73118951,108900.0,108890.0,0.20256621]
[1752039496445,0.98177851,108900.0,108890.0,0.20256621]
[1752039496650,0.98177851,108900.0,108890.0,0.17903621]
[1752039496950,0.73118951,108900.0,108890.0,0.17903621]
[1752039497850,0.75415951,108900.0,108890.0,0.17903621]
[1752039498050,0.73118951,108900.0,108890.0,0.16826911]
[1752039498249,0.75415951,108900.0,108890.0,0.16826911]
[1752039498450,0.98177851,108900.0,108890.0,0.16826911]
[1752039498952,1.00474851,108900.0,108890.0,0.16826911]
[1752039499346,1.00474851,108900.0,108890.0,0.22299298]
[1752039499854,1.00474851,108900.0,108890.0,0.16826911]
[1752039500151,0.50357051,108900.0,108890.0,0.16826911]
[1752039500446,0.50357051,108900.0,108890.0,0.22299298]
[1752039500640,1.00474851,108900.0,108890.0,0.22299298]
[1752039500952,1.00474851,108900.0,108890.0,0.23376087]
[1752039501253,1.00474851,108900.0,108890.0,0.19286978]
[1752039501455,1.00574851,108900.0,108890.0,0.22886613]
[1752039502452,1.00574851,108900.0,108890.0,0.18786978]
[1752039503054,0.50457051,108900.0,108890.0,0.18786978]
[1752039503249,1.00574851,108900.0,108890.0,0.20196265]
[1752039504450,1.00574851,108900.0,108890.0,0.20196263]
[1752039504846,1.00574851,108900.0,108890.0,0.18541263]
[1752039505150,1.00574851,108900.0,108890.0,0.21567871]
[1752039506541,1.00574851,108900.0,108890.0,0.05512682]
[1752039506754,1.07034851,108900.0,108890.0,0.05512682]
[1752039506954,1.07034851,108900.0,108890.0,0.05514379]
[1752039507453,1.07034851,108900.0,108890.0,0.05513996]
[1752039508952,1.25401251,108900.0,108890.0,0.05513996]
[1752039509750,1.07034851,108900.0,108890.0,0.01410601]
[1752039510153,0.86442851,108900.0,108890.0,0.01410601]
[1752039510353,0.86442851,108900.0,108890.0,0.04550601]
[1752039510354,1.06790851,108900.0,108890.0,0.04550601]
[1752039511959,0.79982851,108900.0,108890.0,0.04550601]
[1752039512149,0.79982851,108900.0,108890.0,0.09379601]
[1752039512150,0.54923951,108900.0,108890.0,0.09379601]
[1752039512355,0.52626951,108900.0,108890.0,0.09379601]
[1752039512555,0.72934951,108900.0,108890.0,0.09379601]
[1752039513551,0.27568051,108900.0,108890.0,0.27744031]
[1752039513753,0.47864051,108900.0,108890.0,0.61213201]
[1752039513960,0.27568051,108900.0,108890.0,0.61213201]
[1752039514348,0.27568051,108900.0,108890.0,0.598026]
[1752039514548,0.26023051,108900.0,108890.0,0.347437]
[1752039514754,0.1856274,108900.0,108890.0,0.347437]
[1752039514954,0.002,108900.0,108890.0,0.347437]
[1752039515156,0.1856275,108900.0,108890.0,0.63911767]
[1752039515456,0.002,108900.0,108890.0,0.63911767]
[1752039515849,0.001,108900.0,108890.0,0.38952867]
[1752039516052,0.1836275,108900.0,108890.0,0.39052867]
[1752039516264,0.74663782,108910.0,108900.0,0.1836275]
[1752039516459,0.74663782,108910.0,108900.0,0.30334969]
[1752039516656,0.51360162,108910.0,108900.0,0.32687969]
[1752039517059,0.51360162,108910.0,108900.0,0.2858475]
[1752039517262,0.58546541,108910.0,108900.0,0.2858475]
[1752039517462,0.58546541,108910.0,108900.0,0.10222]
[1752039517859,0.51360162,108910.0,108900.0,0.2858475]
[1752039518055,0.26301262,108910.0,108900.0,0.36797312]
[1752039518257,0.51460162,108910.0,108900.0,0.36797312]
[1752039518450,0.26401262,108910.0,108900.0,0.36797312]
[1752039518656,0.00213822,108910.0,108900.0,0.99984545]
[1752039518855,0.18574892,108910.0,108900.0,0.32713083]
[1752039519055,0.43633792,108910.0,108900.0,0.40918322]
[1752039519464,0.18574892,108910.0,108900.0,0.40918322]
[1752039519761,0.18474892,108910.0,108900.0,0.41118322]
[1752039520266,0.43533792,108910.0,108900.0,0.22755572]
[1752039520461,0.43533792,108910.0,108900.0,0.41118322]
[1752039520655,0.18374892,108910.0,108900.0,0.41118322]
[1752039520857,0.43433792,108910.0,108900.0,0.41218322]
[1752039521061,0.19965892,108910.0,108900.0,0.22855572]
[1752039521264,0.43433792,108910.0,108900.0,0.41218322]
[1752039521458,0.43433792,108910.0,108900.0,0.42294968]
[1752039521765,0.43433792,108910.0,108900.0,0.42194968]
[1752039521953,0.18374892,108910.0,108900.0,0.42194968]
[1752039522156,0.18374892,108910.0,108900.0,0.38242968]
[1752039522353,0.43433792,108910.0,108900.0,0.42194968]
[1752039522555,0.18374892,108910.0,108900.0,0.42194961]
[1752039522763,0.43433792,108910.0,108900.0,0.42194961]
[1752039523061,0.00013822,108910.0,108900.0,0.42194961]
[1752039523264,0.00013822,108910.0,108900.0,0.9555976]
[1752039523564,0.6064878,108950.0,108930.0,0.1835769]
[1752039523769,0.7437488,108950.0,108940.0,0.2882801]
[1752039524064,0.32060256,108950.0,108940.0,0.14600333]
[1752039524568,0.31903849,108950.0,108940.0,0.14600333]
[1752039524765,0.30315849,108950.0,108940.0,0.14600333]
[1752039525163,0.2354388,108950.0,108940.0,0.14600333]
[1752039525360,0.2513188,108950.0,108940.0,0.14600333]
[1752039525865,0.2354388,108950.0,108940.0,0.14600333]
[1752039526170,0.2513188,108950.0,108940.0,0.14600333]
[1752039526354,0.2354388,108950.0,108940.0,0.10472]
[1752039526557,0.5019078,108950.0,108940.0,0.08119]
[1752039526756,0.5253178,108950.0,108940.0,0.0652]
[1752039526967,0.3396288,108950.0,108940.0,0.0652]
[1752039527168,0.3396288,108950.0,108940.0,0.08176]
[1752039527663,0.5932178,108950.0,108940.0,0.08176]
[1752039528269,0.5872178,108950.0,108940.0,0.08176]
[1752039528578,0.5912178,108950.0,108940.0,0.08176]
[1752039528868,0.66579049,108950.0,108940.0,0.12351186]
[1752039529259,0.41520149,108950.0,108940.0,0.30707206]
[1752039529461,0.32689149,108950.0,108940.0,0.12351186]
[1752039529664,0.57748049,108950.0,108940.0,0.12351186]
[1752039530474,0.32689149,108950.0,108940.0,0.30707206]
[1752039530770,0.32689149,108950.0,108940.0,0.12351186]
[1752039530961,0.32689149,108950.0,108940.0,0.30707206]
[1752039531471,0.57748049,108950.0,108940.0,0.30707206]
[1752039531861,0.02288,108950.0,108940.0,0.55766106]
[1752039532367,0.02288,108950.0,108940.0,0.3104336]
[1752039532556,0.007,108950.0,108940.0,0.5838226]
[1752039532759,0.007,108950.0,108940.0,0.58545489]
[1752039532960,0.007,108950.0,108940.0,0.62481489]
[1752039533359,0.007,108950.0,108940.0,0.62145335]
[1752039534069,0.1905433,108950.0,108940.0,0.37086435]
[1752039534265,0.1905433,108950.0,108940.0,0.32987206]
[1752039534469,0.257589,108950.0,108940.0,0.33321894]
[1752039534668,0.007,108950.0,108940.0,0.33321894]
[1752039534969,0.1905433,108950.0,108940.0,0.32987206]
[1752039535563,0.4411323,108950.0,108940.0,0.32987206]
[1752039535759,0.4570123,108950.0,108940.0,0.32987216]
[1752039535962,0.2064233,108950.0,108940.0,0.32987216]
[1752039536159,0.4570123,108950.0,108940.0,0.32987216]
[1752039536564,0.4570123,108950.0,108940.0,0.14631186]
[1752039536772,0.4570123,108950.0,108940.0,0.10695186]
[1752039536969,0.4570123,108950.0,108940.0,0.12351186]
[1752039537164,0.4570123,108950.0,108940.0,0.09141186]
[1752039537367,0.5176123,108950.0,108940.0,0.07485186]
[1752039537671,0.5176123,108950.0,108940.0,0.09141186]
[1752039537873,0.2670233,108950.0,108940.0,0.09141186]
[1752039538066,0.5176123,108950.0,108940.0,0.12461186]
[1752039538572,0.2670233,108950.0,108940.0,0.12461186]
[1752039538768,0.5176123,108950.0,108940.0,0.12461186]
[1752039540176,0.4570123,108950.0,108940.0,0.12461186]
[1752039540577,0.2064233,108950.0,108940.0,0.12461186]
[1752039540773,0.2925333,108950.0,108940.0,0.12461186]
[1752039541075,0.2691233,108950.0,108940.0,0.12461186]
[1752039541273,0.5197123,108950.0,108940.0,0.12461186]
[1752039541772,0.2925333,108950.0,108940.0,0.05831186]
[1752039541983,0.5431223,108950.0,108940.0,0.05831186]
[1752039543481,0.5431223,108950.0,108940.0,0.04175186]
[1752039546078,0.7529623,108950.0,108940.0,0.04175186]
[1752039546776,0.5023733,108950.0,108940.0,0.04175186]
[1752039546982,0.7529623,108950.0,108940.0,0.04175186]
[1752039547182,0.5023733,108950.0,108940.0,0.04175186]
[1752039547382,0.7529623,108950.0,108940.0,0.04175186]
[1752039547984,0.7529623,108950.0,108940.0,0.05831186]
[1752039548182,0.5023733,108950.0,108940.0,0.08961186]
[1752039548382,0.5431223,108950.0,108940.0,0.12231186]
[1752039548583,0.5197123,108950.0,108940.0,0.30587216]
[1752039548780,0.5197123,108950.0,108940.0,0.12231186]
[1752039549083,0.2064233,108950.0,108940.0,0.32522539]
[1752039549283,0.007,108950.0,108940.0,0.63960668]
[1752039549479,0.1905435,108950.0,108940.0,0.38901768]
[1752039549883,0.007,108950.0,108940.0,0.3997798]
[1752039550084,0.2064235,108950.0,108940.0,0.3997798]
[1752039550385,0.4570125,108950.0,108940.0,0.1934195]
[1752039550576,0.4570125,108950.0,108940.0,0.24779324]
[1752039550775,0.4570125,108950.0,108940.0,0.28885334]
[1752039551184,0.2064235,108950.0,108940.0,0.2344796]
[1752039551577,0.4804225,108950.0,108940.0,0.19272774]
[1752039551773,0.4804225,108950.0,108940.0,0.15404025]
[1752039551977,0.2937335,108950.0,108940.0,0.15404025]
[1752039552179,0.5443225,108950.0,108940.0,0.17060025]
[1752039553186,0.2937335,108950.0,108940.0,0.17060025]
[1752039553382,0.007,108950.0,108940.0,0.35416055]
[1752039553580,0.2054235,108950.0,108940.0,0.41506055]
[1752039553776,0.02188,108950.0,108940.0,0.66564955]
[1752039553983,0.2054235,108950.0,108940.0,0.41506055]
[1752039554279,0.2014235,108950.0,108940.0,0.41506055]
[1752039554784,0.2034235,108950.0,108940.0,0.41506055]
[1752039556786,0.2034235,108950.0,108940.0,0.66564955]
[1752039556987,0.2026635,108950.0,108940.0,0.68962955]
[1752039557187,0.004,108950.0,108940.0,0.87261655]
[1752039557387,0.2526606,109000.0,108950.0,0.0458858]
[1752039557589,0.26823834,109000.0,108980.0,0.0458706]
[1752039557778,0.00515131,109000.0,108990.0,0.2156761]
[1752039557982,0.25499185,109000.0,108990.0,0.00199688]
[1752039558184,0.25499185,109000.0,108990.0,0.21572467]
[1752039558380,0.17243423,109000.0,108990.0,0.21572467]
[1752039558586,0.17243423,109000.0,108990.0,0.45555512]
[1752039558798,0.20399643,109000.0,108990.0,0.46631233]
[1752039558990,0.1764444,109000.0,108990.0,0.46631233]
[1752039559185,0.06651727,109000.0,108990.0,0.2435204]
[1752039559379,0.10615926,109000.0,108990.0,0.2435204]
[1752039559589,0.14890216,109000.0,108990.0,0.2435204]
[1752039559791,0.06651727,109000.0,108990.0,0.24810225]
[1752039560094,0.05239727,109000.0,108990.0,0.24810225]
[1752039560495,0.05239727,109000.0,108990.0,0.31924225]
[1752039560895,0.05139727,109000.0,108990.0,0.31924225]
[1752039561099,0.23085667,109000.0,108990.0,0.33210527]
[1752039561302,0.25097667,109000.0,108990.0,0.16202424]
[1752039561599,0.25097667,109000.0,108990.0,0.10639424]
[1752039561785,0.28247667,109000.0,108990.0,0.05998424]
[1752039562091,0.33266007,109000.0,108990.0,0.05998424]
[1752039562292,0.95781917,109000.0,108990.0,0.04922703]
[1752039562490,0.95781917,109000.0,108990.0,0.0594614]
[1752039562683,0.95781917,109000.0,108990.0,0.04870365]
[1752039562684,0.95381917,109000.0,108990.0,0.04870365]
[1752039563295,0.95381917,109000.0,108990.0,0.02973562]
[1752039563499,0.93613577,109000.0,108990.0,0.02973562]
[1752039563695,0.31097667,109000.0,108990.0,0.02973562]
[1752039563894,0.26823377,109000.0,108990.0,0.07008938]
[1752039564399,0.29140377,109000.0,108990.0,0.11090127]
[1752039564995,0.91656287,109000.0,108990.0,0.12450524]
[1752039565194,0.91656287,109000.0,108990.0,0.12482194]
[1752039565694,0.91656287,109000.0,108990.0,0.05447735]
[1752039565695,1.35005887,109000.0,108990.0,0.05447735]
[1752039565895,0.1835099,108970.0,108960.0,0.01934279]
[1752039566090,0.53637633,108970.0,108960.0,0.16424411]
[1752039566290,0.53637633,108970.0,108960.0,0.15348426]
[1752039566604,0.60057633,108970.0,108960.0,0.01699716]
[1752039566791,0.56837633,108970.0,108960.0,0.12571157]
[1752039566986,0.56837633,108970.0,108960.0,0.14152157]
[1752039566987,0.26482678,108970.0,108960.0,0.14152157]
[1752039567198,0.57740633,108970.0,108960.0,0.01999716]
[1752039567399,0.28799678,108970.0,108960.0,0.03580716]
[1752039567996,0.26482678,108970.0,108960.0,0.06830716]
[1752039568197,0.23262678,108970.0,108960.0,0.07230716]
[1752039568399,0.54520633,108970.0,108960.0,0.07230716]
[1752039568599,0.61751323,108970.0,108960.0,0.07230716]
[1752039568999,0.10630378,108970.0,108960.0,0.2668367]
[1752039569195,0.30493368,108970.0,108960.0,0.09975252]
[1752039569396,0.61751323,108970.0,108960.0,0.10075252]
[1752039570293,0.61751323,108970.0,108960.0,0.08131]
[1752039570493,0.67378323,108970.0,108960.0,0.04931]
[1752039570898,0.36120368,108970.0,108960.0,0.04931]
[1752039571099,0.60147633,108970.0,108960.0,0.04931]
[1752039571294,0.57830633,108970.0,108960.0,0.04931]
[1752039571695,0.57930633,108970.0,108960.0,0.06854465]
[1752039571899,0.51420633,108970.0,108960.0,0.06854465]
[1752039572102,0.20162678,108970.0,108960.0,0.09924465]
[1752039572304,0.53737633,108970.0,108960.0,0.09924465]
[1752039572500,0.53737633,108970.0,108960.0,0.05273465]
[1752039572702,0.59937633,108970.0,108960.0,0.01923465]
[1752039572902,0.59937633,108970.0,108960.0,0.02023465]
[1752039573207,0.59937633,108970.0,108960.0,0.03604465]
[1752039573811,0.67441395,108970.0,108960.0,0.01581]
[1752039574203,0.9869935,108970.0,108960.0,0.01567178]
[1752039574404,0.67541395,108970.0,108960.0,0.01567178]
[1752039575107,0.67541395,108970.0,108960.0,0.02643297]
[1752039575707,0.67541395,108970.0,108960.0,0.01567178]
[1752039575907,0.1835437,108950.0,108940.0,0.31349953]
[1752039576208,0.1835437,108950.0,108940.0,0.34007137]
[1752039576209,0.00099844,108950.0,108940.0,0.34007137]
[1752039577106,0.00099844,108950.0,108940.0,0.34207137]
[1752039577307,0.18454214,108950.0,108940.0,0.34207137]
[1752039577504,0.18454214,108950.0,108940.0,0.32291237]
[1752039577703,0.00099844,108950.0,108940.0,0.32291237]
[1752039577910,0.01611844,108950.0,108940.0,0.33700811]
[1752039578708,0.19966214,108950.0,108940.0,0.33700811]
[1752039579302,0.19966214,108950.0,108940.0,0.33700808]
[1752039579707,0.01611844,108950.0,108940.0,0.33700808]
[1752039580008,0.19966214,108950.0,108940.0,0.33700808]
[1752039580514,0.01611844,108950.0,108940.0,0.33700808]
[1752039580705,0.01611844,108950.0,108940.0,0.64958763]
[1752039580906,0.01611844,108950.0,108940.0,0.33700808]
[1752039581106,0.01611844,108950.0,108940.0,0.64958763]
[1752039581315,0.01611844,108950.0,108940.0,0.33700808]
[1752039581513,0.00099844,108950.0,108940.0,0.33700808]
[1752039582208,0.18454214,108950.0,108940.0,0.33700808]
[1752039583405,0.19966214,108950.0,108940.0,0.33701138]
[1752039583606,0.51224169,108950.0,108940.0,0.15345078]
[1752039584120,0.51224169,108950.0,108940.0,0.12872078]
[1752039584409,0.53541169,108950.0,108940.0,0.04821143]
[1752039584713,0.59781169,108950.0,108940.0,0.04821143]
[1752039585717,0.59781169,108950.0,108940.0,0.01809574]
[1752039587014,0.84977169,108950.0,108940.0,0.01809574]
[1752039589319,0.8860117,108950.0,108940.0,0.01809574]
[1752039591023,0.57343215,108950.0,108940.0,0.01809574]
[1752039591223,0.8860117,108950.0,108940.0,0.01809574]
[1752039591422,0.57343215,108950.0,108940.0,0.01809574]
[1752039591617,0.8860117,108950.0,108940.0,0.01809574]
[1752039593021,0.57343215,108950.0,108940.0,0.01809574]
[1752039593216,0.8860117,108950.0,108940.0,0.01809574]
[1752039593622,0.88781882,108950.0,108940.0,0.01809574]
[1752039593822,0.57523927,108950.0,108940.0,0.01809574]
[1752039594020,0.88781882,108950.0,108940.0,0.01809574]
[1752039594320,0.88781882,108950.0,108940.0,0.0288587]
[1752039594522,0.63585882,108950.0,108940.0,0.0288587]
[1752039594724,0.32327927,108950.0,108940.0,0.0288587]
[1752039595023,0.88461882,108950.0,108940.0,0.0288587]
[1752039595222,0.88362038,108950.0,108940.0,0.0288587]
[1752039595523,0.81788849,108950.0,108940.0,0.0288587]
[1752039597119,0.81684849,108950.0,108940.0,0.0288587]
[1752039597624,0.82016849,108950.0,108940.0,0.0288587]
[1752039598025,0.82008849,108950.0,108940.0,0.0288587]
[1752039599124,0.82108693,108950.0,108940.0,0.0288587]
[1752039600018,0.90328957,108950.0,108940.0,0.0288587]
[1752039600418,0.59071002,108950.0,108940.0,0.0288587]
[1752039600619,0.90328957,108950.0,108940.0,0.0288587]
[1752039600819,0.59071002,108950.0,108940.0,0.0288587]
[1752039601023,0.65232957,108950.0,108940.0,0.0288587]
[1752039601228,0.59091002,108950.0,108940.0,0.0288587]
[1752039601428,0.89487881,108950.0,108940.0,0.0288587]
[1752039601819,0.64354881,108950.0,108940.0,0.0288587]
[1752039602026,0.89478881,108950.0,108940.0,0.0288587]
[1752039603021,0.89478881,108950.0,108940.0,0.02897046]
[1752039603022,0.58220926,108950.0,108940.0,0.02897046]
[1752039603228,0.89478881,108950.0,108940.0,0.02897046]
[1752039603423,0.64354881,108950.0,108940.0,0.04451046]
[1752039603631,0.89470881,108950.0,108940.0,0.04451046]
[1752039603934,0.86450881,108950.0,108940.0,0.07761046]
[1752039604126,0.86450881,108950.0,108940.0,0.06207046]
[1752039604327,0.55192926,108950.0,108940.0,0.0513075]
[1752039604528,0.86450881,108950.0,108940.0,0.0668475]
[1752039604831,0.86450881,108950.0,108940.0,0.07761064]
[1752039605232,0.55192926,108950.0,108940.0,0.0992475]
[1752039605531,0.86450881,108950.0,108940.0,0.0992475]
[1752039607034,0.27796926,108950.0,108940.0,0.1234475]
[1752039607337,0.47614617,108950.0,108940.0,0.1234475]
[1752039607539,0.14824662,108950.0,108940.0,0.1234475]
[1752039607836,0.16356662,108950.0,108940.0,0.3070083]
[1752039608032,0.46082617,108950.0,108940.0,0.3070083]
[1752039608239,0.14824662,108950.0,108940.0,0.3070083]
[1752039608639,0.22258947,108950.0,108940.0,0.3070083]
[1752039609235,0.03904557,108950.0,108940.0,0.3070083]
[1752039609430,0.03904557,108950.0,108940.0,0.61958785]
[1752039609838,0.22258947,108950.0,108940.0,0.3070083]
[1752039612150,0.23790947,108950.0,108940.0,0.3070083]
[1752039612451,0.22258957,108950.0,108940.0,0.3070083]
[1752039613651,0.22258957,108950.0,108940.0,0.61958785]
[1752039613850,0.22258957,108950.0,108940.0,0.3070083]
[1752039614446,0.22258957,108950.0,108940.0,0.6270083]
[1752039614749,0.55149912,108950.0,108940.0,0.32602862]
[1752039614950,0.22258957,108950.0,108940.0,0.32602862]
[1752039615150,0.53516912,108950.0,108940.0,0.32602862]
[1752039615349,0.55149912,108950.0,108940.0,0.32602862]
[1752039615853,0.23891957,108950.0,108940.0,0.32602862]
[1752039617146,0.22258957,108950.0,108940.0,0.32730862]
[1752039617850,0.53516912,108950.0,108940.0,0.14374782]
[1752039618040,0.55149912,108950.0,108940.0,0.1247275]
[1752039618245,0.55149912,108950.0,108940.0,0.1001175]
[1752039618444,0.27211957,108950.0,108940.0,0.1001175]
[1752039618638,0.58469912,108950.0,108940.0,0.1001175]
[1752039618842,0.60790912,108950.0,108940.0,0.1001175]
[1752039619649,0.27211957,108950.0,108940.0,0.1001175]
[1752039619847,0.27211957,108950.0,108940.0,0.2836783]
[1752039620051,0.55149912,108950.0,108940.0,0.3082883]
[1752039620248,0.23891957,108950.0,108940.0,0.3082883]
[1752039621153,0.22258957,108950.0,108940.0,0.3082883]
[1752039621651,0.22258957,108950.0,108940.0,0.62086785]
[1752039621852,0.22258957,108950.0,108940.0,0.3082883]
[1752039622343,0.55149912,108950.0,108940.0,0.2836783]
[1752039622753,0.23891957,108950.0,108940.0,0.2836783]
[1752039622953,0.55149912,108950.0,108940.0,0.3082883]
[1752039623151,0.23891957,108950.0,108940.0,0.3082883]
[1752039623347,0.55149912,108950.0,108940.0,0.30792159]
[1752039623949,0.23891957,108950.0,108940.0,0.30792159]
[1752039624147,0.55149912,108950.0,108940.0,0.30792159]
[1752039625551,0.55149912,108950.0,108940.0,0.09975079]
[1752039625756,0.23891957,108950.0,108940.0,0.09975079]
[1752039625952,0.25358957,108950.0,108940.0,0.05094079]
[1752039626151,0.29312957,108950.0,108940.0,0.06735079]
[1752039626456,0.60570912,108950.0,108940.0,0.25091159]
[1752039626850,0.60570912,108950.0,108940.0,0.28391159]
[1752039628958,0.29312957,108950.0,108940.0,0.2838493]
[1752039629157,0.60570912,108950.0,108940.0,0.2838493]